[Event "Early-Titled-Tuesday-Blitz-May-07-2024"]
[Site "Chess.com"]
[Date "2024.05.07"]
[Round "8"]
[White "RodTwinkz"]
[Black "viktorgen2021"]
[Result "1-0"]
[WhiteElo "2671"]
[BlackElo "2501"]
[TimeControl "180+1"]
[EndTime "9:34:13 PDT"]
[Termination "RodTwinkz won by resignation"]

1. e4 {[%clk 0:03:00.9]} 1... g6 {[%clk 0:02:57.5]} 2. Nc3 {[%clk 0:02:59.9]}
2... Bg7 {[%clk 0:02:58.4]} 3. f4 {[%clk 0:03:00.3]} 3... d6 {[%clk 0:02:59.3]}
4. Nf3 {[%clk 0:03:00.8]} 4... Nf6 {[%clk 0:02:56.2]} 5. Bc4 {[%clk 0:03:00.3]}
5... O-O {[%clk 0:02:54.9]} 6. Bb3 {[%clk 0:02:58]} 6... c6 {[%clk 0:02:41.6]}
7. O-O {[%clk 0:02:56]} 7... d5 {[%clk 0:02:41]} 8. e5 {[%clk 0:02:55.9]} 8...
Ne8 {[%clk 0:02:34.5]} 9. d4 {[%clk 0:02:54.6]} 9... f6 {[%clk 0:02:28.3]} 10.
Ne2 {[%clk 0:02:51.1]} 10... Nc7 {[%clk 0:02:27.7]} 11. c3 {[%clk 0:02:49.2]}
11... c5 {[%clk 0:02:25]} 12. Be3 {[%clk 0:02:46.6]} 12... Nc6 {[%clk
0:02:24.3]} 13. exf6 {[%clk 0:02:38.8]} 13... exf6 {[%clk 0:02:09.7]} 14. dxc5
{[%clk 0:02:37.4]} 14... Re8 {[%clk 0:02:09.4]} 15. Bf2 {[%clk 0:02:33]} 15...
Be6 {[%clk 0:02:00.2]} 16. Ned4 {[%clk 0:02:31.8]} 16... Bf7 {[%clk 0:01:58.2]}
17. f5 {[%clk 0:02:22]} 17... Qd7 {[%clk 0:01:55]} 18. Bc2 {[%clk 0:02:16.9]}
18... Ne5 {[%clk 0:01:51.6]} 19. b4 {[%clk 0:02:11.8]} 19... Nc4 {[%clk
0:01:47.2]} 20. Bd3 {[%clk 0:01:39.7]} 20... Rad8 {[%clk 0:01:38.9]} 21. Qc2
{[%clk 0:01:38.4]} 21... Ne5 {[%clk 0:01:26.5]} 22. h3 {[%clk 0:01:28.9]} 22...
Nxd3 {[%clk 0:01:19.1]} 23. Qxd3 {[%clk 0:01:29.8]} 23... Re7 {[%clk 0:00:57.3]}
24. b5 {[%clk 0:01:18.1]} 24... Rde8 {[%clk 0:00:54]} 25. c6 {[%clk 0:01:16]}
25... Qc8 {[%clk 0:00:44.8]} 26. a4 {[%clk 0:01:08.3]} 26... Bh6 {[%clk
0:00:39.3]} 27. Rfe1 {[%clk 0:01:05.1]} 27... Bf4 {[%clk 0:00:35.5]} 28. Rxe7
{[%clk 0:00:59.1]} 28... Rxe7 {[%clk 0:00:36.4]} 29. Re1 {[%clk 0:00:58.9]}
29... Bd6 {[%clk 0:00:35.5]} 30. Rxe7 {[%clk 0:00:55.9]} 30... Bxe7 {[%clk
0:00:36.4]} 31. cxb7 {[%clk 0:00:56.2]} 31... Qxb7 {[%clk 0:00:35.3]} 32. Nc6
{[%clk 0:00:56.2]} 32... Bd6 {[%clk 0:00:34.4]} 33. Nxa7 {[%clk 0:00:43.7]}
33... Ne8 {[%clk 0:00:23]} 34. Nc6 {[%clk 0:00:40.6]} 34... Ng7 {[%clk
0:00:15.2]} 35. Nd8 {[%clk 0:00:26.7]} 35... Nxf5 {[%clk 0:00:13.4]} 36. Nxb7
{[%clk 0:00:25.5]} 1-0

[Event "Early-Titled-Tuesday-Blitz-May-07-2024"]
[Site "Chess.com"]
[Date "2024.05.07"]
[Round "8"]
[White "IM_ArthurDW08"]
[Black "Pedrada88"]
[Result "1-0"]
[WhiteElo "2732"]
[BlackElo "2556"]
[TimeControl "180+1"]
[EndTime "9:34:15 PDT"]
[Termination "IM_ArthurDW08 won by resignation"]

1. e4 {[%clk 0:03:00.9]} 1... c5 {[%clk 0:02:57.6]} 2. Nc3 {[%clk 0:02:59.1]}
2... Nc6 {[%clk 0:02:57.8]} 3. g3 {[%clk 0:02:59.7]} 3... g6 {[%clk 0:02:57.8]}
4. Bg2 {[%clk 0:03:00.2]} 4... Bg7 {[%clk 0:02:58.4]} 5. Nge2 {[%clk 0:03:01.1]}
5... Rb8 {[%clk 0:02:58.9]} 6. O-O {[%clk 0:03:02]} 6... b5 {[%clk 0:02:59.3]}
7. d3 {[%clk 0:02:51.5]} 7... e6 {[%clk 0:02:56.8]} 8. Be3 {[%clk 0:02:47.2]}
8... b4 {[%clk 0:02:56.6]} 9. Na4 {[%clk 0:02:44.5]} 9... d6 {[%clk 0:02:57]}
10. d4 {[%clk 0:02:44]} 10... cxd4 {[%clk 0:02:53.7]} 11. Nxd4 {[%clk
0:02:44.6]} 11... Bd7 {[%clk 0:02:53.2]} 12. c4 {[%clk 0:02:24]} 12... bxc3
{[%clk 0:02:45.5]} 13. Nxc3 {[%clk 0:02:23.3]} 13... Rxb2 {[%clk 0:02:43.7]} 14.
Ncb5 {[%clk 0:01:55.9]} 14... Qb8 {[%clk 0:02:19.9]} 15. Nxc6 {[%clk 0:01:50.8]}
15... Qxb5 {[%clk 0:02:20]} 16. Nxa7 {[%clk 0:01:42.3]} 16... Qa6 {[%clk
0:02:19.4]} 17. Bd4 {[%clk 0:01:35.7]} 17... Kf8 {[%clk 0:02:03]} 18. Bxg7+
{[%clk 0:01:33.3]} 18... Kxg7 {[%clk 0:02:00.8]} 19. Qd4+ {[%clk 0:01:33.9]}
19... e5 {[%clk 0:01:59.9]} 20. Qxb2 {[%clk 0:01:34.8]} 20... Qxa7 {[%clk
0:01:59.6]} 21. Rfd1 {[%clk 0:01:34.6]} 21... Qa6 {[%clk 0:01:37.9]} 22. Qb4
{[%clk 0:01:32.2]} 22... Nf6 {[%clk 0:01:28.4]} 23. Qxd6 {[%clk 0:01:31.1]}
23... Qa5 {[%clk 0:01:16.2]} 24. Qd2 {[%clk 0:01:27.7]} 24... Qa4 {[%clk
0:01:12.8]} 25. Qb2 {[%clk 0:01:03.3]} 25... Re8 {[%clk 0:01:12.2]} 26. a3
{[%clk 0:01:03.7]} 26... Bc6 {[%clk 0:01:05.5]} 27. Qb4 {[%clk 0:01:01.7]} 27...
Ra8 {[%clk 0:00:59]} 28. Qxa4 {[%clk 0:01:01.2]} 28... Rxa4 {[%clk 0:00:59.9]}
29. f3 {[%clk 0:01:00.9]} 29... g5 {[%clk 0:00:58.7]} 30. Rac1 {[%clk
0:00:56.2]} 30... Ba8 {[%clk 0:00:57.3]} 31. Rc5 {[%clk 0:00:55.3]} 31... g4
{[%clk 0:00:52.8]} 32. Rxe5 {[%clk 0:00:53.1]} 32... gxf3 {[%clk 0:00:52.7]} 33.
Bxf3 {[%clk 0:00:54]} 33... Rxa3 {[%clk 0:00:53.2]} 34. Rg5+ {[%clk 0:00:49.7]}
34... Kh6 {[%clk 0:00:52.8]} 35. Rf5 {[%clk 0:00:50.1]} 35... Nxe4 {[%clk
0:00:39.4]} 36. Rxf7 {[%clk 0:00:46.3]} 36... Nxg3 {[%clk 0:00:19.7]} 37. Bxa8
{[%clk 0:00:41]} 37... Ne2+ {[%clk 0:00:15.3]} 38. Kf2 {[%clk 0:00:40.7]} 38...
Ra2 {[%clk 0:00:12.5]} 39. Rd6+ {[%clk 0:00:38.3]} 39... Kg5 {[%clk 0:00:12.2]}
40. Bd5 {[%clk 0:00:37.6]} 40... Nf4+ {[%clk 0:00:10.7]} 41. Bxa2 {[%clk
0:00:36.9]} 41... h5 {[%clk 0:00:09.7]} 42. Rxf4 {[%clk 0:00:36.8]} 42... Kxf4
{[%clk 0:00:09.6]} 43. Rd4+ {[%clk 0:00:37.3]} 43... Kg5 {[%clk 0:00:09.7]} 44.
Ke3 {[%clk 0:00:38.2]} 1-0

[Event "Early-Titled-Tuesday-Blitz-May-07-2024"]
[Site "Chess.com"]
[Date "2024.05.07"]
[Round "8"]
[White "Evan_Attaker"]
[Black "Artemiki"]
[Result "1/2-1/2"]
[WhiteElo "2625"]
[BlackElo "2500"]
[TimeControl "180+1"]
[EndTime "9:34:18 PDT"]
[Termination "Game drawn by repetition"]

1. Nf3 {[%clk 0:03:00.9]} 1... c5 {[%clk 0:02:41]} 2. c4 {[%clk 0:03:01.7]} 2...
Nc6 {[%clk 0:02:40.6]} 3. d4 {[%clk 0:02:59.8]} 3... cxd4 {[%clk 0:02:40]} 4.
Nxd4 {[%clk 0:03:00.7]} 4... Nf6 {[%clk 0:02:25.2]} 5. g3 {[%clk 0:02:58.8]}
5... e5 {[%clk 0:02:18]} 6. Nc2 {[%clk 0:02:58.1]} 6... d5 {[%clk 0:02:08.2]} 7.
cxd5 {[%clk 0:02:57.8]} 7... Nxd5 {[%clk 0:02:07.3]} 8. Bg2 {[%clk 0:02:57.2]}
8... Be6 {[%clk 0:02:02.4]} 9. O-O {[%clk 0:02:55.9]} 9... Bc5 {[%clk
0:01:59.2]} 10. a3 {[%clk 0:02:53.4]} 10... O-O {[%clk 0:01:55]} 11. b4 {[%clk
0:02:53]} 11... Bb6 {[%clk 0:01:51]} 12. Bb2 {[%clk 0:02:52.4]} 12... Rc8 {[%clk
0:01:41.6]} 13. b5 {[%clk 0:02:45.1]} 13... Na5 {[%clk 0:01:37.5]} 14. Bxe5
{[%clk 0:02:44.4]} 14... Qg5 {[%clk 0:01:36.3]} 15. Bd4 {[%clk 0:02:16.8]} 15...
Nb3 {[%clk 0:01:31.6]} 16. Ra2 {[%clk 0:02:06.5]} 16... Rxc2 {[%clk 0:01:23.9]}
17. Rxc2 {[%clk 0:01:59.6]} 17... Nxd4 {[%clk 0:01:23.8]} 18. Rd2 {[%clk
0:01:59]} 18... Qe5 {[%clk 0:01:08.4]} 19. e3 {[%clk 0:01:56]} 19... Nxe3 {[%clk
0:01:04.7]} 20. fxe3 {[%clk 0:01:56.9]} 20... Nf5 {[%clk 0:00:55.4]} 21. Kh1
{[%clk 0:01:51.5]} 21... Nxe3 {[%clk 0:00:49.4]} 22. Qe2 {[%clk 0:01:34]} 22...
Bc4 {[%clk 0:00:42.9]} 23. Qf3 {[%clk 0:01:23.3]} 23... Nxf1 {[%clk 0:00:42.4]}
24. Bxf1 {[%clk 0:01:24.2]} 24... Bxf1 {[%clk 0:00:32.2]} 25. Qxf1 {[%clk
0:01:25.1]} 25... Qe4+ {[%clk 0:00:30.3]} 26. Rg2 {[%clk 0:01:23.3]} 26... Rc8
{[%clk 0:00:27]} 27. Nd2 {[%clk 0:01:22.6]} 27... Qd5 {[%clk 0:00:27.3]} 28. h3
{[%clk 0:01:16.6]} 28... Rc2 {[%clk 0:00:25.7]} 29. Nf3 {[%clk 0:01:06.8]} 29...
Rc3 {[%clk 0:00:20.1]} 30. Nh4 {[%clk 0:00:55.6]} 30... Rxg3 {[%clk 0:00:18.4]}
31. Kh2 {[%clk 0:00:52.8]} 31... Rc3 {[%clk 0:00:17.1]} 32. Qe1 {[%clk
0:00:48.6]} 32... Bc7+ {[%clk 0:00:16.2]} 33. Kg1 {[%clk 0:00:47.7]} 33... Qc5+
{[%clk 0:00:11.5]} 34. Kf1 {[%clk 0:00:47.8]} 34... Rxh3 {[%clk 0:00:08.5]} 35.
Qe8+ {[%clk 0:00:45.2]} 35... Qf8 {[%clk 0:00:08.9]} 36. Rxg7+ {[%clk
0:00:45.5]} 36... Kxg7 {[%clk 0:00:08.9]} 37. Nf5+ {[%clk 0:00:46.1]} 37... Kg8
{[%clk 0:00:09.1]} 38. Ne7+ {[%clk 0:00:46.7]} 38... Kg7 {[%clk 0:00:08.8]} 39.
Nf5+ {[%clk 0:00:47.2]} 39... Kg8 {[%clk 0:00:08.9]} 40. Ne7+ {[%clk 0:00:46.7]}
40... Kg7 {[%clk 0:00:09.5]} 41. Nf5+ {[%clk 0:00:46.6]} 1/2-1/2

[Event "Early-Titled-Tuesday-Blitz-May-07-2024"]
[Site "Chess.com"]
[Date "2024.05.07"]
[Round "8"]
[White "Jojo_898"]
[Black "Aminazinas"]
[Result "1-0"]
[WhiteElo "2449"]
[BlackElo "2621"]
[TimeControl "180+1"]
[EndTime "9:34:20 PDT"]
[Termination "Jojo_898 won by resignation"]

1. e4 {[%clk 0:03:00.9]} 1... e5 {[%clk 0:02:59.5]} 2. Nf3 {[%clk 0:02:59.9]}
2... Nc6 {[%clk 0:02:59.7]} 3. Bc4 {[%clk 0:02:58.3]} 3... Nf6 {[%clk
0:02:59.8]} 4. d3 {[%clk 0:02:55.4]} 4... Be7 {[%clk 0:02:59.1]} 5. O-O {[%clk
0:02:54.6]} 5... O-O {[%clk 0:02:59.1]} 6. h3 {[%clk 0:02:51]} 6... d6 {[%clk
0:02:58.5]} 7. a4 {[%clk 0:02:49.9]} 7... Be6 {[%clk 0:02:58.4]} 8. Nbd2 {[%clk
0:02:48.1]} 8... Qd7 {[%clk 0:02:58.3]} 9. Re1 {[%clk 0:02:43.9]} 9... Rad8
{[%clk 0:02:56.8]} 10. c3 {[%clk 0:02:42.3]} 10... h6 {[%clk 0:02:53.6]} 11. b4
{[%clk 0:02:38]} 11... a5 {[%clk 0:02:47.7]} 12. b5 {[%clk 0:02:37.2]} 12... Nb8
{[%clk 0:02:47.7]} 13. d4 {[%clk 0:02:28.5]} 13... exd4 {[%clk 0:02:44.1]} 14.
Bxe6 {[%clk 0:02:23.6]} 14... fxe6 {[%clk 0:02:41.2]} 15. cxd4 {[%clk
0:02:24.2]} 15... d5 {[%clk 0:02:37.6]} 16. e5 {[%clk 0:02:01.2]} 16... Ne8
{[%clk 0:02:32.9]} 17. Nf1 {[%clk 0:01:51.9]} 17... c6 {[%clk 0:02:30.5]} 18.
Qd3 {[%clk 0:01:49.5]} 18... Nc7 {[%clk 0:02:26.8]} 19. b6 {[%clk 0:01:47.1]}
19... Na8 {[%clk 0:02:20.2]} 20. Bd2 {[%clk 0:01:46.4]} 20... c5 {[%clk
0:02:05.2]} 21. Bxa5 {[%clk 0:01:41.4]} 21... c4 {[%clk 0:02:05.2]} 22. Qd2
{[%clk 0:01:36.2]} 22... Nc6 {[%clk 0:02:03.4]} 23. Reb1 {[%clk 0:01:32]} 23...
Nxa5 {[%clk 0:01:47.7]} 24. Qxa5 {[%clk 0:01:32]} 24... Qc6 {[%clk 0:01:47.9]}
25. Qb5 {[%clk 0:01:15.5]} 25... Qxb5 {[%clk 0:01:41.6]} 26. Rxb5 {[%clk
0:01:15.4]} 26... Rc8 {[%clk 0:01:41.8]} 27. a5 {[%clk 0:01:15.2]} 27... c3
{[%clk 0:01:41.6]} 28. Ne3 {[%clk 0:01:11.9]} 28... Rc6 {[%clk 0:01:33.9]} 29.
Nc2 {[%clk 0:01:09.3]} 29... g5 {[%clk 0:01:28.2]} 30. Nfe1 {[%clk 0:01:00.6]}
30... Rfc8 {[%clk 0:01:16.8]} 31. Nd3 {[%clk 0:00:59.4]} 31... Kf7 {[%clk
0:01:17]} 32. Kf1 {[%clk 0:00:58.1]} 32... Ke8 {[%clk 0:01:15.2]} 33. Ke2 {[%clk
0:00:58]} 33... Kd7 {[%clk 0:01:15]} 34. Rb3 {[%clk 0:00:57.3]} 34... Rc4 {[%clk
0:01:15]} 35. Kf3 {[%clk 0:00:48.7]} 35... h5 {[%clk 0:01:13.3]} 36. Ke2 {[%clk
0:00:46.5]} 36... R4c6 {[%clk 0:01:12.2]} 37. g3 {[%clk 0:00:42.8]} 37... Rf8
{[%clk 0:01:10.2]} 38. f4 {[%clk 0:00:41.5]} 38... h4 {[%clk 0:01:08.4]} 39.
gxh4 {[%clk 0:00:40.2]} 39... gxf4 {[%clk 0:01:07.7]} 40. Kf3 {[%clk 0:00:39.4]}
40... Bxh4 {[%clk 0:01:07.5]} 41. Kg4 {[%clk 0:00:38]} 41... Be7 {[%clk
0:01:03.7]} 42. Nxf4 {[%clk 0:00:37.4]} 42... Rg8+ {[%clk 0:01:03.2]} 43. Kf3
{[%clk 0:00:37.3]} 43... Rh8 {[%clk 0:01:02.6]} 44. Kg3 {[%clk 0:00:35.3]} 44...
Rcc8 {[%clk 0:01:02.2]} 45. Kh2 {[%clk 0:00:33.8]} 45... Rcf8 {[%clk 0:01:01.8]}
46. Ng6 {[%clk 0:00:28.7]} 46... Rf2+ {[%clk 0:00:59]} 47. Kg1 {[%clk
0:00:29.3]} 47... Rhf8 {[%clk 0:00:53.6]} 48. Nxf8+ {[%clk 0:00:28.8]} 48...
Rxf8 {[%clk 0:00:53.1]} 49. Rxc3 {[%clk 0:00:29]} 49... Bd8 {[%clk 0:00:50.5]}
50. Rf1 {[%clk 0:00:26.2]} 50... Rg8+ {[%clk 0:00:50]} 51. Kh2 {[%clk
0:00:26.8]} 51... Bxb6 {[%clk 0:00:50.2]} 52. axb6 {[%clk 0:00:26.6]} 52... Nxb6
{[%clk 0:00:51.1]} 53. Rf7+ {[%clk 0:00:26.8]} 53... Kd8 {[%clk 0:00:50]} 54.
Rxb7 {[%clk 0:00:27.1]} 54... Nc4 {[%clk 0:00:50.5]} 55. Rb8+ {[%clk 0:00:27.4]}
1-0

[Event "Early-Titled-Tuesday-Blitz-May-07-2024"]
[Site "Chess.com"]
[Date "2024.05.07"]
[Round "8"]
[White "Genghis_K"]
[Black "GMBenjaminBok"]
[Result "1/2-1/2"]
[WhiteElo "2932"]
[BlackElo "3052"]
[TimeControl "180+1"]
[EndTime "9:34:21 PDT"]
[Termination "Game drawn by repetition"]

1. e4 {[%clk 0:03:00.9]} 1... e5 {[%clk 0:02:56.7]} 2. Nf3 {[%clk 0:03:01.2]}
2... Nc6 {[%clk 0:02:57.1]} 3. d4 {[%clk 0:03:01.9]} 3... exd4 {[%clk
0:02:57.2]} 4. Nxd4 {[%clk 0:03:02.8]} 4... Nf6 {[%clk 0:02:57.4]} 5. Nxc6
{[%clk 0:03:03.5]} 5... bxc6 {[%clk 0:02:58.3]} 6. Bd3 {[%clk 0:03:04.1]} 6...
d5 {[%clk 0:02:56.3]} 7. exd5 {[%clk 0:03:05]} 7... cxd5 {[%clk 0:02:57.1]} 8.
O-O {[%clk 0:03:05.5]} 8... Be7 {[%clk 0:02:56.9]} 9. c4 {[%clk 0:03:06.3]} 9...
d4 {[%clk 0:02:47.2]} 10. Nd2 {[%clk 0:03:04.8]} 10... O-O {[%clk 0:02:44.7]}
11. Ne4 {[%clk 0:03:05.3]} 11... Bb7 {[%clk 0:02:41.5]} 12. Nxf6+ {[%clk
0:03:03.5]} 12... Bxf6 {[%clk 0:02:42.4]} 13. b4 {[%clk 0:03:04]} 13... Re8
{[%clk 0:02:39.1]} 14. Qg4 {[%clk 0:02:58.8]} 14... g6 {[%clk 0:02:33.9]} 15.
Bh6 {[%clk 0:02:50.5]} 15... a5 {[%clk 0:02:27.3]} 16. b5 {[%clk 0:02:44.9]}
16... Qd6 {[%clk 0:02:26.4]} 17. Rfe1 {[%clk 0:02:36.3]} 17... Bg7 {[%clk
0:02:07.3]} 18. Bf4 {[%clk 0:02:26.3]} 18... Qb4 {[%clk 0:01:47.8]} 19. Red1
{[%clk 0:02:03.5]} 19... Qc5 {[%clk 0:01:42.9]} 20. h4 {[%clk 0:01:59.5]} 20...
Be5 {[%clk 0:01:30.6]} 21. Qg5 {[%clk 0:01:50.2]} 21... Qd6 {[%clk 0:01:22.9]}
22. Bd2 {[%clk 0:01:38.6]} 22... Bf6 {[%clk 0:00:59.4]} 23. Qg4 {[%clk
0:01:38.6]} 23... h5 {[%clk 0:00:57.7]} 24. Qf4 {[%clk 0:01:27.9]} 24... Be5
{[%clk 0:00:57.9]} 25. Qg5 {[%clk 0:01:22.7]} 25... Kg7 {[%clk 0:00:51.5]} 26.
Qh6+ {[%clk 0:01:18.8]} 26... Kg8 {[%clk 0:00:51.4]} 27. Re1 {[%clk 0:01:17.7]}
27... a4 {[%clk 0:00:43]} 28. a3 {[%clk 0:01:12.4]} 28... Bg7 {[%clk 0:00:41.3]}
29. Rxe8+ {[%clk 0:00:55.6]} 29... Rxe8 {[%clk 0:00:42.2]} 30. Qf4 {[%clk
0:00:55.9]} 30... Be5 {[%clk 0:00:40.4]} 31. Qg5 {[%clk 0:00:53.7]} 31... Bf6
{[%clk 0:00:37.5]} 32. Qf4 {[%clk 0:00:38.9]} 32... Be5 {[%clk 0:00:34.7]} 33.
Qg5 {[%clk 0:00:38.5]} 33... Bf6 {[%clk 0:00:23.8]} 34. Qf4 {[%clk 0:00:38.2]}
34... Qd8 {[%clk 0:00:20.9]} 35. Ba5 {[%clk 0:00:27]} 35... Be5 {[%clk
0:00:20.5]} 36. Qg5 {[%clk 0:00:25.5]} 36... Bf6 {[%clk 0:00:18.6]} 37. Qf4
{[%clk 0:00:19.5]} 37... Be5 {[%clk 0:00:18.8]} 38. Qg5 {[%clk 0:00:19.9]} 38...
Bf6 {[%clk 0:00:10.1]} 39. Qf4 {[%clk 0:00:19.4]} 1/2-1/2

[Event "Early-Titled-Tuesday-Blitz-May-07-2024"]
[Site "Chess.com"]
[Date "2024.05.07"]
[Round "8"]
[White "Aygehovit1992"]
[Black "Lestofante90"]
[Result "0-1"]
[WhiteElo "2857"]
[BlackElo "2976"]
[TimeControl "180+1"]
[EndTime "9:34:24 PDT"]
[Termination "Lestofante90 won on time"]

1. e4 {[%clk 0:03:00.9]} 1... c6 {[%clk 0:02:50.9]} 2. d4 {[%clk 0:03:00.3]}
2... d5 {[%clk 0:02:49.7]} 3. e5 {[%clk 0:03:00.9]} 3... Bf5 {[%clk 0:02:49.5]}
4. Nf3 {[%clk 0:03:01.8]} 4... e6 {[%clk 0:02:49.9]} 5. Be2 {[%clk 0:03:02.2]}
5... Nd7 {[%clk 0:02:50.3]} 6. O-O {[%clk 0:03:02.3]} 6... a5 {[%clk 0:02:51]}
7. Re1 {[%clk 0:03:00.7]} 7... a4 {[%clk 0:02:50.9]} 8. Nbd2 {[%clk 0:03:00.2]}
8... a3 {[%clk 0:02:50.8]} 9. c4 {[%clk 0:02:59.2]} 9... Bb4 {[%clk 0:02:46.1]}
10. cxd5 {[%clk 0:02:33.5]} 10... cxd5 {[%clk 0:02:44.7]} 11. Bb5 {[%clk
0:02:23.1]} 11... Ne7 {[%clk 0:02:38.9]} 12. Nh4 {[%clk 0:02:14]} 12... O-O
{[%clk 0:02:36.1]} 13. Re3 {[%clk 0:01:52.7]} 13... axb2 {[%clk 0:02:21.2]} 14.
Bxb2 {[%clk 0:01:53.6]} 14... Nb6 {[%clk 0:02:18.2]} 15. Nxf5 {[%clk 0:01:31.4]}
15... Nxf5 {[%clk 0:02:17.9]} 16. Rh3 {[%clk 0:01:32]} 16... Bxd2 {[%clk
0:02:10.3]} 17. Qxd2 {[%clk 0:01:30.5]} 17... Nc4 {[%clk 0:02:10.7]} 18. Qc2
{[%clk 0:01:19.2]} 18... Nxb2 {[%clk 0:02:03.4]} 19. Qxb2 {[%clk 0:01:20.1]}
19... Qb6 {[%clk 0:01:57.8]} 20. Rd1 {[%clk 0:01:07.2]} 20... Ra4 {[%clk
0:01:57.4]} 21. Rhd3 {[%clk 0:00:42]} 21... Rfa8 {[%clk 0:01:57.1]} 22. a3
{[%clk 0:00:30.9]} 22... h5 {[%clk 0:01:53.1]} 23. g3 {[%clk 0:00:30.6]} 23...
R8a5 {[%clk 0:01:48]} 24. Rb3 {[%clk 0:00:15.7]} 24... Rxd4 {[%clk 0:01:48.1]}
25. Bd3 {[%clk 0:00:11.3]} 25... Qc7 {[%clk 0:01:46.4]} 26. Rxb7 {[%clk
0:00:10.8]} 26... Qxe5 {[%clk 0:01:46.4]} 27. Rb8+ {[%clk 0:00:08.6]} 27... Kh7
{[%clk 0:01:43.6]} 28. Bxf5+ {[%clk 0:00:08.4]} 28... exf5 {[%clk 0:01:43.8]}
29. Rxd4 {[%clk 0:00:08]} 29... Rc5 {[%clk 0:00:55.4]} 30. Kg2 {[%clk
0:00:07.8]} 30... f4 {[%clk 0:00:47.6]} 31. Rxf4 {[%clk 0:00:06.4]} 31... d4
{[%clk 0:00:45.2]} 32. Rb3 {[%clk 0:00:05.1]} 32... g5 {[%clk 0:00:38.2]} 33.
Rxf7+ {[%clk 0:00:05.2]} 33... Kg6 {[%clk 0:00:38.7]} 34. Rbb7 {[%clk 0:00:05]}
34... Qe4+ {[%clk 0:00:35.4]} 35. Kg1 {[%clk 0:00:05.4]} 35... Qe1+ {[%clk
0:00:35.3]} 36. Kg2 {[%clk 0:00:05.8]} 36... Qe4+ {[%clk 0:00:36.2]} 37. Rf3
{[%clk 0:00:05.1]} 37... g4 {[%clk 0:00:35.1]} 38. Qb6+ {[%clk 0:00:05.3]} 38...
Rc6 {[%clk 0:00:35.5]} 39. Qxc6+ {[%clk 0:00:04.6]} 39... Qxc6 {[%clk
0:00:35.7]} 40. Rb3 {[%clk 0:00:02.5]} 40... gxf3+ {[%clk 0:00:35.1]} 41. Rxf3
{[%clk 0:00:03.4]} 41... d3 {[%clk 0:00:35.4]} 0-1

[Event "Early-Titled-Tuesday-Blitz-May-07-2024"]
[Site "Chess.com"]
[Date "2024.05.07"]
[Round "8"]
[White "kuchma777"]
[Black "Alphafischer2019"]
[Result "0-1"]
[WhiteElo "2507"]
[BlackElo "2659"]
[TimeControl "180+1"]
[EndTime "9:34:24 PDT"]
[Termination "Alphafischer2019 won on time"]

1. e4 {[%clk 0:03:00.9]} 1... c5 {[%clk 0:02:58.9]} 2. Nf3 {[%clk 0:03:00]} 2...
Nc6 {[%clk 0:02:58.2]} 3. Bb5 {[%clk 0:02:59.7]} 3... g6 {[%clk 0:02:57.1]} 4.
O-O {[%clk 0:02:59.7]} 4... Bg7 {[%clk 0:02:50.6]} 5. Re1 {[%clk 0:02:59.9]}
5... Nf6 {[%clk 0:02:50]} 6. e5 {[%clk 0:02:59.7]} 6... Nd5 {[%clk 0:02:49.5]}
7. Nc3 {[%clk 0:03:00.2]} 7... Nc7 {[%clk 0:02:44]} 8. Bxc6 {[%clk 0:02:59]}
8... dxc6 {[%clk 0:02:44.9]} 9. Ne4 {[%clk 0:02:59]} 9... b6 {[%clk 0:02:45.2]}
10. Nf6+ {[%clk 0:02:58.5]} 10... Kf8 {[%clk 0:02:45.7]} 11. Ne4 {[%clk
0:02:58.8]} 11... h6 {[%clk 0:02:45.3]} 12. h3 {[%clk 0:02:57.8]} 12... Kg8
{[%clk 0:02:45.5]} 13. d3 {[%clk 0:02:57.9]} 13... Kh7 {[%clk 0:02:45.3]} 14.
Bf4 {[%clk 0:02:57.3]} 14... Nd5 {[%clk 0:02:44.2]} 15. Bg3 {[%clk 0:02:55.9]}
15... a5 {[%clk 0:02:41.9]} 16. Qd2 {[%clk 0:02:53.9]} 16... a4 {[%clk
0:02:41.2]} 17. a3 {[%clk 0:02:53.9]} 17... Be6 {[%clk 0:02:38.1]} 18. Rad1
{[%clk 0:02:51.4]} 18... Qd7 {[%clk 0:02:37.6]} 19. d4 {[%clk 0:02:41.6]} 19...
cxd4 {[%clk 0:02:26.8]} 20. Nxd4 {[%clk 0:01:51.6]} 20... Rhd8 {[%clk
0:02:24.2]} 21. Qe2 {[%clk 0:01:50.1]} 21... c5 {[%clk 0:02:18]} 22. Nb5 {[%clk
0:01:20.5]} 22... Qc6 {[%clk 0:02:12.3]} 23. c4 {[%clk 0:01:18.7]} 23... Nc7
{[%clk 0:02:07.2]} 24. Nxc7 {[%clk 0:01:15.7]} 24... Qxc7 {[%clk 0:02:08.1]} 25.
Nc3 {[%clk 0:01:16]} 25... Qc6 {[%clk 0:02:05.8]} 26. h4 {[%clk 0:01:08.3]}
26... Rd4 {[%clk 0:02:00.8]} 27. h5 {[%clk 0:01:04.9]} 27... Bxc4 {[%clk
0:01:56.5]} 28. hxg6+ {[%clk 0:01:03.8]} 28... Qxg6 {[%clk 0:01:57.1]} 29. Qf3
{[%clk 0:00:58.1]} 29... Rad8 {[%clk 0:01:56]} 30. Rxd4 {[%clk 0:00:51.9]} 30...
Rxd4 {[%clk 0:01:52.7]} 31. Qb7 {[%clk 0:00:37.6]} 31... b5 {[%clk 0:01:44.6]}
32. Nxb5 {[%clk 0:00:29.2]} 32... Rg4 {[%clk 0:01:38.6]} 33. Nc3 {[%clk
0:00:27.1]} 33... h5 {[%clk 0:01:32.5]} 34. Re4 {[%clk 0:00:13.8]} 34... h4
{[%clk 0:01:30.4]} 35. Rxg4 {[%clk 0:00:12.2]} 35... Qxg4 {[%clk 0:01:29.5]} 36.
Bh2 {[%clk 0:00:12.2]} 36... h3 {[%clk 0:01:27.1]} 37. Qe4+ {[%clk 0:00:11.6]}
37... Qxe4 {[%clk 0:01:26.1]} 38. Nxe4 {[%clk 0:00:12.5]} 38... hxg2 {[%clk
0:01:25.1]} 39. Nxc5 {[%clk 0:00:13]} 39... Bb5 {[%clk 0:01:20.9]} 40. Kxg2
{[%clk 0:00:12.7]} 40... Kg6 {[%clk 0:01:21]} 41. f4 {[%clk 0:00:13.2]} 41...
Kf5 {[%clk 0:01:21.4]} 42. Kf3 {[%clk 0:00:13.6]} 42... f6 {[%clk 0:01:18.2]}
43. exf6 {[%clk 0:00:12.8]} 43... Bxf6 {[%clk 0:01:19.1]} 44. b3 {[%clk
0:00:08.5]} 44... Bd4 {[%clk 0:01:16.9]} 45. b4 {[%clk 0:00:05.8]} 45... Bc6+
{[%clk 0:01:15.7]} 46. Ke2 {[%clk 0:00:05.8]} 46... Bb5+ {[%clk 0:01:14.9]} 47.
Kd2 {[%clk 0:00:06]} 47... Bb2 {[%clk 0:01:15.4]} 48. Kc2 {[%clk 0:00:02.1]}
48... Bxa3 {[%clk 0:01:15]} 49. Kc3 {[%clk 0:00:02.8]} 49... Bc1 {[%clk
0:01:14.6]} 50. Bg3 {[%clk 0:00:02.3]} 50... a3 {[%clk 0:01:12.4]} 51. Kb3
{[%clk 0:00:01.8]} 51... Bc6 {[%clk 0:01:10.7]} 52. Nd3 {[%clk 0:00:00.5]} 52...
Bd5+ {[%clk 0:01:11]} 53. Kc2 {[%clk 0:00:00.7]} 53... a2 {[%clk 0:01:08]} 54.
Be1 {[%clk 0:00:01.3]} 54... a1=Q {[%clk 0:01:07.6]} 0-1